Cogmind - Beta 13 @@@ ROGUE MODE // 2024.07.28 @ 17:59:55 Player: Khanable Result: Smashed by cave-in Performance ------------- Evolutions (0) 0 Regions Visited (2) 400 Robots Destroyed (20) 100 Value Destroyed (526) 526 Prototype IDs (0) 0 Alien Tech Used (0) 0 Bonus (-287) -287 TOTAL SCORE: 739 Bonus ------- Friendly Fire -287 Cogmind --------- Core Integrity 0/250 Matter 300/300 Energy 100/100 System Corruption 14% Temperature Cool (0) Movement Core (50) Location -10/Subcaves Parts ------- > --- POWER (1) -------- (None) > --- PROPULSION (2) --- (None) > --- UTILITY (2) ------ (None) > --- WEAPON (2) ------- (None) > --- INVENTORY (5) ---- Hover Unit Heat Sink Shield Generator Shield Generator Battle Cannon Peak State ------------ > --- POWER ------------ Light Ion Engine > --- PROPULSION ------- Wheel Wheel > --- UTILITY ---------- Small Storage Unit Shield Generator > --- WEAPON ----------- Rocket Launcher Rocket Launcher > --- INVENTORY -------- Light Ion Engine Light Treads Heat Sink Core Shielding Shield Generator Authchip [R/Combat] [Rating: 11] Favorites ----------- Power Light Ion Engine Engine Light Ion Engine Propulsion Hover Unit Wheel Wheel Hover Unit Hover Unit Utility Scrap Shield Device Shield Generator Storage Small Storage Unit Protection Scrap Shield Weapon Rocket Launcher Energy Gun Medium Laser Ballistic Gun Light Assault Rifle Launcher Rocket Launcher Build | -11 -10 -10 ------- Run | Yrd Mat Sub Slots Evolved . | . . . Power . | . . . Propulsion . | . . . Utility . | . . . Weapon . | . . . Parts Attached 22 | 6 9 7 Power 5 | 1 . 4 Engine 5 | 1 . 4 Core . | . . . Reactor . | . . . Propulsion 6 | 2 4 . Treads . | . . . Leg . | . . . Wheel 3 | 2 1 . Hover 3 | . 3 . Flight . | . . . Utility 7 | 1 3 3 Device 3 | 1 2 . Storage 1 | . 1 . Processor . | . . . Hackware . | . . . Protection 3 | . . 3 Artifact . | . . . Weapon 4 | 2 2 . Energy Gun 1 | 1 . . Energy Cannon . | . . . Ballistic Gun 1 | 1 . . Ballistic Cannon . | . . . Launcher 2 | . 2 . Special Weapon . | . . . Impact Weapon . | . . . Slashing Weapon . | . . . Piercing Weapon . | . . . Special Melee Weapon . | . . . Unidentified Prototypes . | . . . Parts Lost 8 | . 3 5 Power 1 | . . 1 Propulsion 3 | . 1 2 Utility 2 | . 1 1 Weapon 2 | . 1 1 Highest Loss Streak 3 | . 2 3 To Critical Strikes . | . . . Average Slot Usage (%) 75 | . 86 70 Engine 13 | . 14 13 Wheel 3 | . 11 . Hover 23 | . 14 27 Device 4 | . 13 . Storage 4 | . 13 . Protection 9 | . . 13 Launcher 13 | . 13 14 Naked Turns . | . . . Heaviest Build 25 | 7 18 25 Greatest Support 20 | 20 20 12 Greatest Overweight (x) 3 | . 2 3 Average Overweight (x) 1 | . . 1 Largest Inventory Capacity 8 | 5 8 8 Average Capacity 5 | 5 7 5 Most Carried 8 | 2 8 8 Average Carried 5 | . 7 4 Final Capacity 8 | 5 8 5 Final Carried 7 | 2 7 5 Class Distribution -------------------- 100% | Mutant Dominant Class ---------------- Mutant | -10/Materials Mutant | -10/Subcaves Resources | -11 -10 -10 ----------- Run | Yrd Mat Sub Matter Collected 928 | 257 181 490 Remotely . | . . . Salvage Created 642 | 55 311 276 Parts 31 | 5 12 14 Haulers Intercepted 1 | . 1 . Recyclers Shooed . | . . . Parts Field Recycled . | . . . Retrieved Matter . | . . . Parts Self-Destructed 11 | . . 11 Prevented . | . . . Kills | -11 -10 -10 ------- Run | Yrd Mat Sub Combat Hostiles Destroyed 13 | 1 4 8 Guns 1 | 1 . . AOE 12 | . 4 8 Classes Destroyed 8 | 2 3 3 Worker 2 | 1 1 . Tunneler 1 | . 1 . Hauler 1 | . 1 . Recycler 2 | . 2 . Swarmer 1 | . . 1 Grunt 5 | 1 4 . Artisan 1 | . . 1 Subdweller 7 | . . 7 Thug 1 | . . 1 Best Kill Streak 6 | 1 5 6 Combat Bots Only 6 | 1 2 6 Max Kills in Single Turn 3 | 1 2 3 Gunslinging . | . . . Exploded 3 | . 2 3 Melee . | . . . Uniques/NPCs Destroyed . | . . . Combat | -11 -10 -10 -------- Run | Yrd Mat Sub Hostile Shots Fired 20 | 9 9 2 Missed 4 | 2 2 . Damage Taken 981 | 76 191 714 Core 274 | 31 15 228 Absorbed by Shields 57 | . 57 . Core Remaining (%) 87 | 87 . . Volleys Fired 53 | 7 23 23 Largest 2 | 2 2 1 Hottest 70 | 70 66 33 Shots Fired 61 | 14 24 23 Gun 14 | 14 . . Cannon . | . . . Launcher 47 | . 24 23 Special . | . . . Kinetic 7 | 7 . . Thermal 7 | 7 . . Explosive 47 | . 24 23 Electromagnetic . | . . . Robot Hit Streak 6 | 6 5 2 Robot Miss Streak 2 | 2 1 2 Penetration Max . | . . . Secondary Targets . | . . . Shots Hit Robots 16 | 8 6 2 Core Hits 37 | 3 15 19 Critical Kills . | . . . Critical Parts Destroyed . | . . . Critical Strikes . | . . . Melee Attacks . | . . . Impact . | . . . Slashing . | . . . Piercing . | . . . Sneak Attacks . | . . . Combat Hostiles . | . . . Follow-up Attacks . | . . . Damage Inflicted 1727 | 99 635 993 Guns 99 | 99 . . Cannons . | . . . Explosions 1628 | . 635 993 Melee . | . . . Ramming . | . . . Kinetic 26 | 26 . . Thermal 73 | 73 . . Explosive 1540 | . 547 993 Electromagnetic 88 | . 88 . Impact . | . . . Slashing . | . . . Piercing . | . . . Highest Corruption 7 | . . 7 Average Corruption 7 | . . 7 Corruption Purged . | . . . Corruption Blocked . | . . . Overload Shots . | . . . Overflow Damage 38 | . 13 25 Projectiles . | . . . Explosions 38 | . 13 25 Melee . | . . . Knockbacks . | . . . Impact . | . . . Kinetic . | . . . Secondary . | . . . Self-Inflicted Damage 163 | . 152 11 Shots 5 | . 4 1 Rammed . | . . . Targets Rammed . | . . . Kicked . | . . . Crushed . | . . . Highest Temperature 116 | 116 35 . Average Temperature 43 | 55 24 . Received Heat Transfer 105 | 42 63 . Siege Activations . | . . . Robots Corrupted . | . . . Combat Hostiles . | . . . Parts Fried . | . . . Impact Corruptions . | . . . Robots Melted . | . . . Combat Hostiles . | . . . Parts Melted . | . . . Heat Transferred 222 | 222 . . Parts Sabotaged . | . . . Parts Stolen . | . . . Parts Stripped . | . . . Power Chain Reactions . | . . . Alert | -11 -10 -10 ------- Run | Yrd Mat Sub Peak Influence 251 | 25 251 . Initial 16 | . 16 . Average 93 | 4 112 . Maximum Alert Level 1 | . 1 . Low Security (%) 73 | 100 68 . Level 1 26 | . 31 . Level 2 . | . . . Level 3 . | . . . Level 4 . | . . . Level 5 . | . . . High Security . | . . . Max Security . | . . . Squads Dispatched 2 | . 2 . Investigation 1 | . 1 . Extermination . | . . . Reinforcement 1 | . 1 . Assault . | . . . Garrison . | . . . Intercept . | . . . Searches Triggered . | . . . Construction Impeded . | . . . Haulers Reinforced . | . . . Active Scanning Responses . | . . . Cargo Convoy Interrupts . | . . . Stealth | -11 -10 -10 --------- Run | Yrd Mat Sub Distress Signals . | . . . Communications Jammed . | . . . Distress Signals . | . . . Times Spotted 22 | 1 5 16 Peak Tracking Total 4 | 1 2 4 Tactical Retreats . | . . . Traps | -11 -10 -10 ------- Run | Yrd Mat Sub Traps Triggered 2 | . 2 . Indirectly . | . . . Trap Hack Attempts . | . . . Triggered . | . . . Disarmed . | . . . Reprogrammed . | . . . Reused . | . . . Traps Extracted . | . . . Installed . | . . . Triggered . | . . . Machines | -11 -10 -10 ---------- Run | Yrd Mat Sub Machines Disabled 4 | . 4 . Max in Single Turn 1 | . 1 . Machines Repaired . | . . . Machines Dismantled . | . . . Machines Sabotaged . | . . . Overloaded Fab Kills . | . . . Hacking | -11 -10 -10 --------- Run | Yrd Mat Sub Machines Accessed 2 | . 2 . Terminals 1 | . 1 . Fabricators . | . . . Repair Stations . | . . . Recycling Units 1 | . 1 . Scanalyzers . | . . . Garrison Access . | . . . Total Hacks 6 | . 6 . Successful 4 | . 4 . Failed 1 | . 1 . Catastrophic 1 | . 1 . Database Lockouts 1 | . 1 . Manual 7 | . 7 . Terminals 4 | . 4 . Fabricators . | . . . Repair Stations . | . . . Recycling Units 2 | . 2 . Scanalyzers . | . . . Garrison Access . | . . . Terminal Hacks 2 | . 2 . Record 2 | . 2 . Fabricator Hacks . | . . . Repair Station Hacks . | . . . Recycling Unit Hacks 2 | . 2 . Report Inventory 1 | . 1 . Retrieve Components 1 | . 1 . Scanalyzer . | . . . Garrison Access Hacks . | . . . Unauthorized Hacks . | . . . Terminals . | . . . Fabricators . | . . . Repair Stations . | . . . Recycling Units . | . . . Scanalyzers . | . . . Garrison Access . | . . . Data Cores Recovered . | . . . Used . | . . . Hacking Detections 2 | . 2 . Full Trace Events 1 | . 1 . Feedback Events . | . . . Feedback Blocked . | . . . Robot Schematics Acquired . | . . . Robots Built . | . . . Authchips . | . . . Time . | . . . Total Robot Build Rating . | . . . Part Schematics Acquired . | . . . Parts Built . | . . . Authchips . | . . . Time . | . . . Total Part Build Rating . | . . . Parts Repaired . | . . . Time . | . . . Parts Recycled . | . . . Recycled Matter . | . . . Retrieved Matter . | . . . Retrieved Components 3 | . 3 . Parts Scanalyzed . | . . . Part Schematics Acquired . | . . . Parts Damaged . | . . . Bothacking | -11 -10 -10 ------------ Run | Yrd Mat Sub Used RIF Installer . | . . . Robots Hacked . | . . . Non-combat . | . . . Combat . | . . . Robot Hacks Applied . | . . . Relay Couplers Released . | . . . Fabnet Peak Effective % . | . . . Robots Rewired . | . . . Allies Hacked . | . . . Hacks Repelled . | . . . Allies | -11 -10 -10 -------- Run | Yrd Mat Sub Total Allies . | . . . Largest Group . | . . . Highest-Rated Group . | . . . Highest-Rated Ally . | . . . Total Orders . | . . . Ally Attacks . | . . . Total Damage . | . . . Kills . | . . . Allies Corrupted . | . . . Allies Melted . | . . . Intel | -11 -10 -10 ------- Run | Yrd Mat Sub Robot Analysis Total . | . . . Derelict Logs Recovered 1 | . . 1 Drone Launches . | . . . Drone Recoveries . | . . . Exploration | -11 -10 -10 ------------- Run | Yrd Mat Sub Turns Passed 1574 | 108 503 963 Spaces Moved 1038 | 106 418 514 Core 22 | 22 . . Treads . | . . . Legs . | . . . Wheels 306 | 84 222 . Hover 710 | . 196 514 Flight . | . . . Fastest Speed 50 | 50 56 56 Average Speed 134 | 73 98 174 Slowest Speed 240 | 80 185 240 Overloaded Moves . | . . . Propulsion Burnouts . | . . . Robots Hopped . | . . . Cave-ins Triggered 2 | . . 2 Exploration Rate (%) 27 | 8 50 23 Regions Visited 2 Branch Regions 1 Pre-discovered Areas 1 | . . 1 Known Exits Taken . | . . . Unknown Exits Taken 2 | 1 1 . Scrap Searched . | . . . Spaces Dug 144 | . 46 98 Terrain Destroyed 346 | . 155 191 Melee . | . . . Projectile . | . . . AOE 346 | . 155 191 Terrain Rammed . | . . . Walls Destroyed . | . . . Machines Disabled . | . . . Actions | -11 -10 -10 --------- Run | Yrd Mat Sub Total 1162 | 120 484 558 Wait 21 | . 16 5 Move 1035 | 105 417 513 Hop . | . . . Pick Up 13 | 2 10 1 Fast Attach 16 | 6 6 4 Attach 3 | . 2 1 Detach 3 | . 1 2 Swap 3 | . 1 2 Drop 14 | . 8 6 Fire 53 | 7 23 23 Melee . | . . . Ram . | . . . Kick . | . . . Crush . | . . . Escape Stasis 1 | . . 1 Rewire . | . . . Trap . | . . . Miscellaneous . | . . . Route ------- -11/Scrapyard -10/Materials (discovered 4 exits: [*Mat] / [*Min x2] / [*Sub]) -10/Subcaves History --------- Turn | Location | Event 2 | -11/Scrapyard | Met Revision 17 75 | -11/Scrapyard | Discovered new exit (range 8) 109 | -11/Scrapyard | Entered Materials 129 | -10/Materials | Discovered new exit (range 13) 150 | -10/Materials | Central database locked down 270 | -10/Materials | Discovered new exit (range 7) 317 | -10/Materials | Build established: Mutant 361 | -10/Materials | Discovered new exit (range 16) 399 | -10/Materials | Discovered new exit (range 10) 612 | -10/Materials | Entered Subcaves 783 | -10/Subcaves | Ambushed by swarm of Subdwellers 981 | -10/Subcaves | A swath of the cavern ceiling suddenly collapsed 1114 | -10/Subcaves | Shifting Twisted Machinery released Sub. Laser 1120 | -10/Subcaves | Shifting Twisted Machinery released Spk. Treads 1228 | -10/Subcaves | A Subdweller sparked back to life 1228 | -10/Subcaves | A Subdweller sparked back to life 1228 | -10/Subcaves | A Subdweller sparked back to life 1309 | -10/Subcaves | A swath of the cavern ceiling suddenly collapsed 1336 | -10/Subcaves | Learned location of Zion (-7) 1495 | -10/Subcaves | Ambushed by Subdweller buried in earth 1519 | -10/Subcaves | Ambushed by Subdweller buried in earth 1528 | -10/Subcaves | Ambushed by Subdweller buried in earth 1544 | -10/Subcaves | Crushed by falling debris 1576 | -10/Subcaves | Crushed by falling debris 1576 | -10/Subcaves | Smashed by cave-in Last Messages --------------- The unstable cave ceiling collapses. Crushed by falling debris. Hover Unit destroyed. System corrupted by crushing effect (+5). Lgt. Ion Engine destroyed. System corrupted by crushing effect (+2). The unstable cave ceiling collapses. Scrap Shield Fragment crushed. The unstable cave ceiling collapses. 95-0ZM(g) crushed by falling debris. 95-0ZM(g) system corrupted by crushing effect. Scrap Shield Fragment crushed. The unstable cave ceiling collapses. Crushed by falling debris. Rocket Launcher destroyed. System corrupted by crushing effect (+2). Scrap Shield destroyed. System corrupted by crushing effect (+4). Hover Unit destroyed. System corrupted by crushing effect (+1). Map ----- +----------------------------------------------------+ | ??????????????????????????????????????????? | | ??????????????????????????????????????????? | | ??????????????????????????????????????????? | | ??????????????????????????????????????????? | | ##????????????????????????????????????????? | | #????????????????????????????????????????? | | ###??????????????????????????????????????? | | ???????????????????????????????????????? | | #???????????????????????????????????????? | | #???????????????????????????????????????? | | ##??????????????????????????????????????? | | #??????????????????????????????????????? | | &*###?????????????????????????????????????? | | # ##????????????????????????????????????? | | &*& #????????????????????????????????????? | | [ = #????????????????????????????????????? | | %= ##???????????????# ???????????????????? | | % ######?????????"##???????????????????? | | &## ##??????##"" ???????????????????? | | "### ????##?""# #???????????????????? | | " " ## #?????"##"##"#???######??????????? | | #### ##??##"#"""" ###### ###????????? | | ### #?##"#"#"## # #????????? | | ### ### "#""#;### # # #????????? | | ## "#"##; ## ##????????? | | #"## @ #%##????????? | | # # ### # # #????????? | | ##### ## # ### ##%& #????????? | | #####???##### ## ### #! #????????? | | #???????????## ## # & #????????? | | #????####???# ### & [ ##????????? | | ##???## #??# ### # ##?????????? | | ???## #?## ### # ##??????????? | | ??## ### ## #???????????? | | ??# #### ####???????????? | | # ??# #??# ##?????????????? | | # ??# ### #### #?????????????? | | # ????????##### ##?????????????? | | ????????????## ##??????????????? | | ????????????## #???????????????? | | ???????????# ##???????????????? | | ??????????# ##????????????????? | | # ??????????### ##?????????????????? | | ?# ?????????#### ##??????????????????? | | ?? ??????????# ##???????????????????? | | ??????????????### ##????????????????????? | | ????????????????## ##?????????????????????? | | ?????????????????###??????????????????????? | | ??????????????????????????????????????????? | | ??????????????????????????????????????????? | +----------------------------------------------------+ Best States ------------- Heat Dissipation 35 Energy Generation 15 Energy Capacity 200 Matter Stores 300 Matter Capacity 300 Sight Range 16 Terrain Scan Density 10 Armor Coverage 800 Evasion (%) 50 Authchip Count 1 Item Schematics ----------------- None Robot Schematics ------------------ None Fabricated ------------ Nothing Alien Tech Used ----------------- None Achievements -------------- Backstab Loot Pinata Remodeling Challenges ------------ None Game ------ Seed ShockAerolevPerforator Manual? 0 Play Time 00:28:04 Cumulative 2.3 hours Start 2024.07.28 @ 17:33:17 End 2024.07.28 @ 17:59:55 Sessions 1 Manual Loads 0 Difficulty Rogue Special Mode None Game No. 2 Rogue 2 Adventurer 0 Explorer 0 Win Type - Total 0 Types 0/0/0/0/0/0/0/0/0 Lore% 1 Gallery% 5 Achievement% 5 Wizard Run 0 Options --------- Layout 1 ASCII 0 Keyboard 1 Movement Vi Keybinds 0 Fullscreen 1 Font 32/SmallcapsGlow Map View 77x35 Zoom Use 0% Tactical HUD 0 Map Filters NONE Filters NONE Steam 1 RUN: ff3d1b91-5aa8-47dd-9fa0-767b7666425c